[Event "Titled Tuesday Blitz April 19 Early 2022"]
[White "Popadic, Dragan"]
[Black "Samant Aditya S"]
[WhiteFideId "913650"]
[BlackFideId "35080580"]
[WhiteElo "2203"]
[BlackElo "1916"]
[Result "0-1"]
[Round "06"]
[TimeControl "180+1"]
[Date "2022.04.19"]
[WhiteClock "0:00:03"]
[BlackClock "0:00:03"]

1. e4 {[%clk 0:02:59]}  c5 {[%clk 0:03:00]} 2. Nc3 {[%clk 0:02:59]}  Nc6 {[%clk 0:02:58]} 3. f4 {[%clk 0:02:59]}  g6 {[%clk 0:02:57]} 4. Nf3 {[%clk 0:02:59]}  Bg7 {[%clk 0:02:57]} 5. Bc4 {[%clk 0:02:59]}  e6 {[%clk 0:02:58]} 6. f5 {[%clk 0:02:58]}  Nge7 {[%clk 0:02:55]} 7. fxe6 {[%clk 0:02:58]}  dxe6 {[%clk 0:02:55]} 8. d3 {[%clk 0:02:58]}  O-O {[%clk 0:02:48]} 9. O-O {[%clk 0:02:58]}  Nd4 {[%clk 0:02:29]} 10. Nxd4 {[%clk 0:02:57]}  cxd4 {[%clk 0:02:30]} 11. Ne2 {[%clk 0:02:57]}  a6 {[%clk 0:02:28]} 12. Bd2 {[%clk 0:02:57]}  b5 {[%clk 0:02:26]} 13. Bb3 {[%clk 0:02:57]}  Nc6 {[%clk 0:02:17]} 14. Qe1 {[%clk 0:02:57]}  Qe7 {[%clk 0:01:37]} 15. Nf4 {[%clk 0:02:45]}  a5 {[%clk 0:01:16]} 16. a4 {[%clk 0:02:43]}  b4 {[%clk 0:00:59]} 17. Qg3 {[%clk 0:02:37]}  Bd7 {[%clk 0:00:48]} 18. Rf2 {[%clk 0:02:31]}  Ne5 {[%clk 0:00:36]} 19. h3 {[%clk 0:02:28]}  Kh8 {[%clk 0:00:33]} 20. Raf1 {[%clk 0:02:27]}  Bc6 {[%clk 0:00:30]} 21. Kh1 {[%clk 0:02:20]}  Nd7 {[%clk 0:00:29]} 22. Ne2 {[%clk 0:02:06]}  Nc5 {[%clk 0:00:22]} 23. Bg5 {[%clk 0:01:46]}  f6 {[%clk 0:00:18]} 24. Nxd4 {[%clk 0:01:18]}  Bxa4 {[%clk 0:00:18]} 25. Bxa4 {[%clk 0:01:03]}  Nxa4 {[%clk 0:00:19]} 26. Bc1 {[%clk 0:01:02]}  Nc5 {[%clk 0:00:18]} 27. b3 {[%clk 0:01:00]}  Rac8 {[%clk 0:00:16]} 28. Nf3 {[%clk 0:00:54]}  e5 {[%clk 0:00:15]} 29. Nh2 {[%clk 0:00:49]}  Ne6 {[%clk 0:00:12]} 30. Ng4 {[%clk 0:00:48]}  Nd4 {[%clk 0:00:13]} 31. Ne3 {[%clk 0:00:43]}  Qe6 {[%clk 0:00:12]} 32. Nc4 {[%clk 0:00:42]}  Ra8 {[%clk 0:00:09]} 33. Bb2 {[%clk 0:00:39]}  Nc6 {[%clk 0:00:09]} 34. Nb6 {[%clk 0:00:36]}  Rab8 {[%clk 0:00:07]} 35. Nc4 {[%clk 0:00:36]}  Ra8 {[%clk 0:00:07]} 36. Nb6 {[%clk 0:00:34]}  Rab8 {[%clk 0:00:08]} 37. Nd5 {[%clk 0:00:33]}  f5 {[%clk 0:00:06]} 38. Qh4 {[%clk 0:00:29]}  f4 {[%clk 0:00:06]} 39. g3 {[%clk 0:00:28]}  fxg3 {[%clk 0:00:04]} 40. Qxg3 {[%clk 0:00:28]}  h6 {[%clk 0:00:03]} 41. Kg2 {[%clk 0:00:25]}  Kh7 {[%clk 0:00:03]} 42. Ne3 {[%clk 0:00:23]}  Rxf2+ {[%clk 0:00:03]} 43. Rxf2 {[%clk 0:00:23]}  Rf8 {[%clk 0:00:03]} 44. Ng4 {[%clk 0:00:23]}  Rxf2+ {[%clk 0:00:03]} 45. Qxf2 {[%clk 0:00:23]}  h5 {[%clk 0:00:04]} 46. Ne3 {[%clk 0:00:22]}  Bh6 {[%clk 0:00:03]} 47. Nc4 {[%clk 0:00:20]}  Bg7 {[%clk 0:00:04]} 48. Qf3 {[%clk 0:00:18]}  Qe7 {[%clk 0:00:03]} 49. Bc1 {[%clk 0:00:16]}  Nd4 {[%clk 0:00:03]} 50. Qf2 {[%clk 0:00:15]}  Qe6 {[%clk 0:00:04]} 51. Nxa5 {[%clk 0:00:13]}  Qa6 {[%clk 0:00:05]} 52. Nc4 {[%clk 0:00:13]}  Qa2 {[%clk 0:00:05]} 53. Be3 {[%clk 0:00:13]}  Nxc2 {[%clk 0:00:04]} 54. d4 {[%clk 0:00:10]}  exd4 {[%clk 0:00:03]} 55. Bf4 {[%clk 0:00:10]}  Qxb3 {[%clk 0:00:03]} 56. Ne5 {[%clk 0:00:07]}  Ne3+ {[%clk 0:00:04]} 57. Bxe3 {[%clk 0:00:07]}  dxe3 {[%clk 0:00:05]} 58. Qf4 {[%clk 0:00:04]}  Qb2+ {[%clk 0:00:04]} 59. Kg3 {[%clk 0:00:03]}  Bxe5 {[%clk 0:00:03]} 0-1


[Site "https://www.chess.com"]

[Event "Titled Tuesday Blitz April 19 Early 2022"]
[White "Postnikov, Daniil"]
[Black "Svane, Frederik"]
[WhiteFideId "4166329"]
[BlackFideId "12923044"]
[WhiteElo "2261"]
[BlackElo "2459"]
[Result "0-1"]
[Round "06"]
[TimeControl "180+1"]
[Date "2022.04.19"]
[WhiteClock "0:00:06"]
[BlackClock "0:00:03"]

1. d4 {[%clk 0:03:00]}  Nf6 {[%clk 0:03:00]} 2. c4 {[%clk 0:03:01]}  e6 {[%clk 0:03:00]} 3. Nf3 {[%clk 0:03:01]}  d5 {[%clk 0:02:59]} 4. g3 {[%clk 0:03:01]}  Bb4+ {[%clk 0:03:00]} 5. Bd2 {[%clk 0:03:00]}  Be7 {[%clk 0:03:00]} 6. Bg2 {[%clk 0:03:00]}  O-O {[%clk 0:03:01]} 7. O-O {[%clk 0:03:00]}  c6 {[%clk 0:03:02]} 8. Qc2 {[%clk 0:03:00]}  b6 {[%clk 0:03:02]} 9. Nc3 {[%clk 0:02:58]}  Ba6 {[%clk 0:02:55]} 10. Ne5 {[%clk 0:02:38]}  Nfd7 {[%clk 0:02:56]} 11. cxd5 {[%clk 0:02:35]}  Nxe5 {[%clk 0:02:49]} 12. d6 {[%clk 0:02:33]}  Bxd6 {[%clk 0:02:38]} 13. dxe5 {[%clk 0:02:32]}  Bxe5 {[%clk 0:02:39]} 14. Rfd1 {[%clk 0:02:29]}  Qc7 {[%clk 0:02:37]} 15. Qe4 {[%clk 0:02:17]}  Bb7 {[%clk 0:02:25]} 16. Rac1 {[%clk 0:02:14]}  Nd7 {[%clk 0:02:20]} 17. Nb5 {[%clk 0:01:53]}  Qb8 {[%clk 0:02:20]} 18. Bc3 {[%clk 0:01:45]}  Bxc3 {[%clk 0:02:10]} 19. Nxc3 {[%clk 0:01:46]}  Nf6 {[%clk 0:02:07]} 20. Qh4 {[%clk 0:01:42]}  c5 {[%clk 0:02:05]} 21. e4 {[%clk 0:01:39]}  Rd8 {[%clk 0:01:56]} 22. Rxd8+ {[%clk 0:01:36]}  Qxd8 {[%clk 0:01:57]} 23. Rd1 {[%clk 0:01:36]}  Qc7 {[%clk 0:00:46]} 24. e5 {[%clk 0:01:30]}  Ne8 {[%clk 0:00:31]} 25. Bxb7 {[%clk 0:01:25]}  Qxb7 {[%clk 0:00:31]} 26. Rd8 {[%clk 0:01:03]}  h6 {[%clk 0:00:30]} 27. Rxa8 {[%clk 0:00:57]}  Qxa8 {[%clk 0:00:31]} 28. Qe7 {[%clk 0:00:57]}  Qc6 {[%clk 0:00:16]} 29. Qxa7 {[%clk 0:00:51]}  Nc7 {[%clk 0:00:16]} 30. Qb8+ {[%clk 0:00:42]}  Kh7 {[%clk 0:00:16]} 31. Qc8 {[%clk 0:00:42]}  c4 {[%clk 0:00:11]} 32. a4 {[%clk 0:00:39]}  Qc5 {[%clk 0:00:10]} 33. Qd7 {[%clk 0:00:39]}  Kg6 {[%clk 0:00:05]} 34. Qd6 {[%clk 0:00:26]}  Na6 {[%clk 0:00:02]} 35. Ne4 {[%clk 0:00:19]}  Qxd6 {[%clk 0:00:02]} 36. exd6 {[%clk 0:00:17]}  Nb8 {[%clk 0:00:03]} 37. Nd2 {[%clk 0:00:17]}  Kf6 {[%clk 0:00:02]} 38. Nxc4 {[%clk 0:00:16]}  Nd7 {[%clk 0:00:03]} 39. b4 {[%clk 0:00:13]}  e5 {[%clk 0:00:04]} 40. a5 {[%clk 0:00:10]}  b5 {[%clk 0:00:04]} 41. Nb6 {[%clk 0:00:08]}  Nb8 {[%clk 0:00:02]} 42. Nd5+ {[%clk 0:00:05]}  Ke6 {[%clk 0:00:02]} 43. Nc7+ {[%clk 0:00:06]}  Kxd6 {[%clk 0:00:03]} 44. Nxb5+ {[%clk 0:00:06]}  Kd5 {[%clk 0:00:03]} 0-1


[Site "https://www.chess.com"]

[Event "Titled Tuesday Blitz April 19 Early 2022"]
[White "Qashashvili, Alexandre"]
[Black "Kaiyrbekov, Rustam"]
[WhiteFideId "13600842"]
[BlackFideId "13702424"]
[WhiteElo "2316"]
[BlackElo "2134"]
[Result "1-0"]
[Round "06"]
[TimeControl "180+1"]
[Date "2022.04.19"]
[WhiteClock "0:01:13"]
[BlackClock "0:00:46"]

1. e4 {[%clk 0:02:55]}  c5 {[%clk 0:02:44]} 2. Nc3 {[%clk 0:02:56]}  Nc6 {[%clk 0:02:42]} 3. Nf3 {[%clk 0:02:53]}  Nf6 {[%clk 0:02:39]} 4. d3 {[%clk 0:02:51]}  g6 {[%clk 0:02:38]} 5. Be3 {[%clk 0:02:50]}  d6 {[%clk 0:02:38]} 6. Qd2 {[%clk 0:02:49]}  h5 {[%clk 0:02:34]} 7. h3 {[%clk 0:02:47]}  Bg7 {[%clk 0:02:31]} 8. Be2 {[%clk 0:02:45]}  a6 {[%clk 0:02:31]} 9. O-O {[%clk 0:02:44]}  b5 {[%clk 0:02:31]} 10. a3 {[%clk 0:02:44]}  Rb8 {[%clk 0:02:29]} 11. Rab1 {[%clk 0:02:38]}  b4 {[%clk 0:02:19]} 12. axb4 {[%clk 0:02:37]}  Nxb4 {[%clk 0:02:16]} 13. e5 {[%clk 0:02:31]}  Nfd5 {[%clk 0:02:09]} 14. Nxd5 {[%clk 0:02:29]}  Nxd5 {[%clk 0:02:10]} 15. exd6 {[%clk 0:02:27]}  exd6 {[%clk 0:02:06]} 16. Bg5 {[%clk 0:02:22]}  Nf6 {[%clk 0:01:55]} 17. b4 {[%clk 0:02:14]}  Rxb4 {[%clk 0:01:51]} 18. Rxb4 {[%clk 0:02:13]}  cxb4 {[%clk 0:01:52]} 19. Qxb4 {[%clk 0:02:10]}  O-O {[%clk 0:01:50]} 20. c4 {[%clk 0:02:03]}  Re8 {[%clk 0:01:42]} 21. Bd1 {[%clk 0:02:00]}  Qd7 {[%clk 0:01:37]} 22. Ba4 {[%clk 0:01:58]}  Qe6 {[%clk 0:01:23]} 23. Bxe8 {[%clk 0:01:54]}  Nxe8 {[%clk 0:01:17]} 24. Re1 {[%clk 0:01:51]}  Qd7 {[%clk 0:01:18]} 25. Re7 {[%clk 0:01:29]}  Qc6 {[%clk 0:01:09]} 26. d4 {[%clk 0:01:22]}  Bf6 {[%clk 0:00:54]} 27. d5 {[%clk 0:01:15]}  Qc5 {[%clk 0:00:46]} 28. Rxe8+ {[%clk 0:01:13]} 1-0


[Site "https://www.chess.com"]

[Event "Titled Tuesday Blitz April 19 Early 2022"]
[White "Sailer, Mike"]
[Black "Derjabin, Ilja"]
[WhiteFideId "2012901"]
[BlackFideId "14104768"]
[WhiteElo "2109"]
[BlackElo "2341"]
[Result "0-1"]
[Round "06"]
[TimeControl "180+1"]
[Date "2022.04.19"]
[WhiteClock "0:00:05"]
[BlackClock "0:00:55"]

1. d4 {[%clk 0:02:59]}  c5 {[%clk 0:03:00]} 2. e3 {[%clk 0:02:57]}  Nf6 {[%clk 0:02:58]} 3. Nf3 {[%clk 0:02:58]}  g6 {[%clk 0:02:53]} 4. Be2 {[%clk 0:02:58]}  Bg7 {[%clk 0:02:52]} 5. O-O {[%clk 0:02:58]}  O-O {[%clk 0:02:51]} 6. c4 {[%clk 0:02:46]}  cxd4 {[%clk 0:02:50]} 7. exd4 {[%clk 0:02:46]}  d5 {[%clk 0:02:51]} 8. c5 {[%clk 0:02:46]}  Nc6 {[%clk 0:02:51]} 9. h3 {[%clk 0:02:44]}  Ne4 {[%clk 0:01:55]} 10. Nc3 {[%clk 0:02:40]}  Bf5 {[%clk 0:01:54]} 11. Bf4 {[%clk 0:02:15]}  Qa5 {[%clk 0:01:40]} 12. Rc1 {[%clk 0:01:42]}  Nxc3 {[%clk 0:01:36]} 13. bxc3 {[%clk 0:01:07]}  f6 {[%clk 0:01:27]} 14. Qb3 {[%clk 0:01:02]}  e5 {[%clk 0:01:20]} 15. Be3 {[%clk 0:01:01]}  Rad8 {[%clk 0:01:10]} 16. Rfd1 {[%clk 0:00:58]}  e4 {[%clk 0:01:08]} 17. Nd2 {[%clk 0:00:50]}  Bc8 {[%clk 0:01:07]} 18. Nxe4 {[%clk 0:00:44]}  f5 {[%clk 0:01:03]} 19. Nd6 {[%clk 0:00:41]}  f4 {[%clk 0:01:04]} 20. Qxd5+ {[%clk 0:00:39]}  Kh8 {[%clk 0:01:03]} 21. Bd2 {[%clk 0:00:21]}  Ne7 {[%clk 0:01:01]} 22. Nf7+ {[%clk 0:00:16]}  Rxf7 {[%clk 0:00:59]} 23. Qxf7 {[%clk 0:00:16]}  Nf5 {[%clk 0:01:00]} 24. Bxf4 {[%clk 0:00:11]}  Rf8 {[%clk 0:01:00]} 25. Qc4 {[%clk 0:00:09]}  Nh4 {[%clk 0:00:58]} 26. Bg4 {[%clk 0:00:08]}  Rxf4 {[%clk 0:00:56]} 27. Bxc8 {[%clk 0:00:08]}  Qc7 {[%clk 0:00:56]} 28. Bg4 {[%clk 0:00:08]}  Bh6 {[%clk 0:00:55]} 29. Re1 {[%clk 0:00:07]}  Rf8 {[%clk 0:00:55]} 30. Rcd1 {[%clk 0:00:06]}  Qc6 {[%clk 0:00:56]} 31. Qe2 {[%clk 0:00:05]}  Qxg2# {[%clk 0:00:55]} 0-1


[Site "https://www.chess.com"]

[Event "Titled Tuesday Blitz April 19 Early 2022"]
[White "Salem, A.R. Saleh"]
[Black "Chen, Qi b"]
[WhiteFideId "9301348"]
[BlackFideId "8614733"]
[WhiteElo "2657"]
[BlackElo "2432"]
[Result "1-0"]
[Round "06"]
[TimeControl "180+1"]
[Date "2022.04.19"]
[WhiteClock "0:00:44"]
[BlackClock "0:00:04"]

1. Nf3 {[%clk 0:03:00]}  Nf6 {[%clk 0:02:58]} 2. c4 {[%clk 0:03:00]}  e6 {[%clk 0:02:56]} 3. g3 {[%clk 0:03:00]}  d5 {[%clk 0:02:53]} 4. b3 {[%clk 0:03:00]}  a5 {[%clk 0:02:52]} 5. Bb2 {[%clk 0:02:50]}  a4 {[%clk 0:02:50]} 6. Na3 {[%clk 0:02:51]}  axb3 {[%clk 0:02:46]} 7. axb3 {[%clk 0:02:52]}  Be7 {[%clk 0:02:44]} 8. Bg2 {[%clk 0:02:52]}  O-O {[%clk 0:02:44]} 9. O-O {[%clk 0:02:53]}  c6 {[%clk 0:02:25]} 10. d3 {[%clk 0:02:51]}  Na6 {[%clk 0:02:15]} 11. Nc2 {[%clk 0:02:47]}  Nd7 {[%clk 0:02:12]} 12. Re1 {[%clk 0:02:38]}  Rb8 {[%clk 0:01:53]} 13. d4 {[%clk 0:02:30]}  Nb4 {[%clk 0:01:44]} 14. e4 {[%clk 0:02:29]}  dxe4 {[%clk 0:01:38]} 15. Rxe4 {[%clk 0:02:27]}  Nxc2 {[%clk 0:01:30]} 16. Qxc2 {[%clk 0:02:27]}  b5 {[%clk 0:01:29]} 17. c5 {[%clk 0:02:19]}  b4 {[%clk 0:01:19]} 18. h4 {[%clk 0:02:08]}  Nf6 {[%clk 0:01:17]} 19. Ne5 {[%clk 0:02:08]}  Qc7 {[%clk 0:01:05]} 20. Bc1 {[%clk 0:02:05]}  Nd5 {[%clk 0:01:00]} 21. h5 {[%clk 0:02:02]}  Bd7 {[%clk 0:00:44]} 22. h6 {[%clk 0:01:03]}  g6 {[%clk 0:00:42]} 23. Rg4 {[%clk 0:01:03]}  f5 {[%clk 0:00:27]} 24. Bxd5 {[%clk 0:00:50]}  exd5 {[%clk 0:00:16]} 25. Nxg6 {[%clk 0:00:50]}  fxg4 {[%clk 0:00:05]} 26. Nxe7+ {[%clk 0:00:50]}  Kh8 {[%clk 0:00:05]} 27. Qe2 {[%clk 0:00:45]}  Rbe8 {[%clk 0:00:04]} 28. Ra7 {[%clk 0:00:44]} 1-0


[Site "https://www.chess.com"]

[Event "Titled Tuesday Blitz April 19 Early 2022"]
[White "Sanal, Vahap"]
[Black "Fonseca Manrique, Enrique"]
[WhiteFideId "6300545"]
[BlackFideId "5114330"]
[WhiteElo "2603"]
[BlackElo "2557"]
[Result "1-0"]
[Round "06"]
[TimeControl "180+1"]
[Date "2022.04.19"]
[WhiteClock "0:01:51"]
[BlackClock "0:00:38"]

1. e4 {[%clk 0:03:00]}  c5 {[%clk 0:02:59]} 2. Nf3 {[%clk 0:02:59]}  e6 {[%clk 0:02:59]} 3. d4 {[%clk 0:02:59]}  cxd4 {[%clk 0:02:59]} 4. Nxd4 {[%clk 0:02:59]}  Nc6 {[%clk 0:03:00]} 5. Nc3 {[%clk 0:03:00]}  Qc7 {[%clk 0:03:00]} 6. g3 {[%clk 0:03:00]}  a6 {[%clk 0:02:59]} 7. Bg2 {[%clk 0:03:00]}  Bc5 {[%clk 0:03:00]} 8. Nxc6 {[%clk 0:02:58]}  bxc6 {[%clk 0:02:59]} 9. Qd3 {[%clk 0:02:55]}  e5 {[%clk 0:02:57]} 10. Be3 {[%clk 0:02:53]}  Bxe3 {[%clk 0:02:57]} 11. Qxe3 {[%clk 0:02:54]}  Rb8 {[%clk 0:02:57]} 12. b3 {[%clk 0:02:48]}  Nf6 {[%clk 0:02:54]} 13. Rd1 {[%clk 0:02:48]}  d6 {[%clk 0:02:53]} 14. O-O {[%clk 0:02:47]}  Bg4 {[%clk 0:02:51]} 15. Rd2 {[%clk 0:02:45]}  Ke7 {[%clk 0:02:47]} 16. h3 {[%clk 0:02:42]}  Be6 {[%clk 0:02:41]} 17. Kh2 {[%clk 0:02:42]}  Qb6 {[%clk 0:02:35]} 18. Qd3 {[%clk 0:02:37]}  Rhd8 {[%clk 0:02:32]} 19. Na4 {[%clk 0:02:33]}  Qb4 {[%clk 0:02:24]} 20. c3 {[%clk 0:02:32]}  Qb5 {[%clk 0:02:21]} 21. c4 {[%clk 0:02:32]}  Qb4 {[%clk 0:02:21]} 22. f4 {[%clk 0:02:30]}  a5 {[%clk 0:02:01]} 23. f5 {[%clk 0:02:11]}  Bc8 {[%clk 0:02:00]} 24. g4 {[%clk 0:02:11]}  h6 {[%clk 0:02:00]} 25. Rfd1 {[%clk 0:02:10]}  Ba6 {[%clk 0:01:58]} 26. Qg3 {[%clk 0:02:08]}  Bxc4 {[%clk 0:01:39]} 27. bxc4 {[%clk 0:02:00]}  Qxa4 {[%clk 0:01:37]} 28. Rxd6 {[%clk 0:01:53]}  Rxd6 {[%clk 0:00:43]} 29. Qxe5+ {[%clk 0:01:52]}  Re6 {[%clk 0:00:38]} 30. Qc7+ {[%clk 0:01:51]} 1-0


[Site "https://www.chess.com"]

[Event "Titled Tuesday Blitz April 19 Early 2022"]
[White "Sanchez, Robert"]
[Black "Kadam, Om Manish"]
[WhiteFideId "2034360"]
[BlackFideId "45076294"]
[WhiteElo "2391"]
[BlackElo "1729"]
[Result "0-1"]
[Round "06"]
[TimeControl "180+1"]
[Date "2022.04.19"]
[WhiteClock "0:01:22"]
[BlackClock "0:02:17"]

1. e4 {[%clk 0:02:58]}  c6 {[%clk 0:02:59]} 2. d4 {[%clk 0:02:56]}  d5 {[%clk 0:03:00]} 3. e5 {[%clk 0:02:56]}  c5 {[%clk 0:03:00]} 4. Nf3 {[%clk 0:02:55]}  Nc6 {[%clk 0:02:59]} 5. dxc5 {[%clk 0:02:55]}  Bg4 {[%clk 0:02:56]} 6. Bb5 {[%clk 0:02:46]}  e6 {[%clk 0:02:54]} 7. Be3 {[%clk 0:02:36]}  Qa5+ {[%clk 0:02:52]} 8. Nc3 {[%clk 0:02:31]}  Ne7 {[%clk 0:02:52]} 9. O-O {[%clk 0:02:03]}  O-O-O {[%clk 0:02:43]} 10. Bd4 {[%clk 0:01:48]}  Bxf3 {[%clk 0:02:29]} 11. gxf3 {[%clk 0:01:49]}  Nxd4 {[%clk 0:02:28]} 12. Qxd4 {[%clk 0:01:48]}  Nf5 {[%clk 0:02:28]} 13. Qf4 {[%clk 0:01:42]}  Bxc5 {[%clk 0:02:22]} 14. a3 {[%clk 0:01:40]}  Bd4 {[%clk 0:02:21]} 15. Bd3 {[%clk 0:01:37]}  g5 {[%clk 0:02:17]} 16. Qg4 {[%clk 0:01:34]}  h5 {[%clk 0:02:17]} 17. Qh3 {[%clk 0:01:33]}  g4 {[%clk 0:02:17]} 18. fxg4 {[%clk 0:01:26]}  hxg4 {[%clk 0:02:18]} 19. Qg2 {[%clk 0:01:22]}  Nh4 {[%clk 0:02:17]} 20. Qg3 {[%clk 0:01:22]}  Nf3+ {[%clk 0:02:17]} 0-1


[Site "https://www.chess.com"]

[Event "Titled Tuesday Blitz April 19 Early 2022"]
[White "Shandrygin, Nikita"]
[Black "Shyaamnikhil P"]
[WhiteFideId "24198668"]
[BlackFideId "5024218"]
[WhiteElo "2323"]
[BlackElo "2329"]
[Result "1/2-1/2"]
[Round "06"]
[TimeControl "180+1"]
[Date "2022.04.19"]
[WhiteClock "0:00:05"]
[BlackClock "0:00:14"]

1. Nf3 {[%clk 0:02:52]}  Nf6 {[%clk 0:02:59]} 2. g3 {[%clk 0:02:53]}  c5 {[%clk 0:02:58]} 3. d4 {[%clk 0:02:54]}  cxd4 {[%clk 0:02:58]} 4. Nxd4 {[%clk 0:02:54]}  Nc6 {[%clk 0:02:58]} 5. Bg2 {[%clk 0:02:55]}  Qb6 {[%clk 0:02:54]} 6. Nb3 {[%clk 0:02:54]}  d5 {[%clk 0:02:53]} 7. O-O {[%clk 0:02:54]}  Bf5 {[%clk 0:02:45]} 8. Nc3 {[%clk 0:02:51]}  e6 {[%clk 0:02:45]} 9. Be3 {[%clk 0:02:18]}  Qd8 {[%clk 0:02:30]} 10. Bc5 {[%clk 0:02:04]}  Bxc5 {[%clk 0:02:27]} 11. Nxc5 {[%clk 0:02:03]}  Qe7 {[%clk 0:02:27]} 12. Nb3 {[%clk 0:02:01]}  O-O {[%clk 0:02:26]} 13. e3 {[%clk 0:02:02]}  Nb4 {[%clk 0:02:20]} 14. Nd4 {[%clk 0:02:00]}  Bg6 {[%clk 0:02:20]} 15. a3 {[%clk 0:01:54]}  Nc6 {[%clk 0:02:20]} 16. Qd2 {[%clk 0:01:45]}  e5 {[%clk 0:02:18]} 17. Nb3 {[%clk 0:01:28]}  Rad8 {[%clk 0:02:17]} 18. Rfd1 {[%clk 0:01:24]}  e4 {[%clk 0:02:11]} 19. Ne2 {[%clk 0:01:14]}  Bh5 {[%clk 0:02:08]} 20. Nbd4 {[%clk 0:01:10]}  Nxd4 {[%clk 0:02:07]} 21. exd4 {[%clk 0:01:07]}  Ne8 {[%clk 0:01:45]} 22. Re1 {[%clk 0:01:05]}  Bxe2 {[%clk 0:01:44]} 23. Rxe2 {[%clk 0:01:05]}  f5 {[%clk 0:01:45]} 24. c4 {[%clk 0:00:40]}  dxc4 {[%clk 0:01:21]} 25. f3 {[%clk 0:00:39]}  Nd6 {[%clk 0:01:20]} 26. Rae1 {[%clk 0:00:35]}  Rde8 {[%clk 0:01:18]} 27. Qb4 {[%clk 0:00:15]}  Qf6 {[%clk 0:01:03]} 28. fxe4 {[%clk 0:00:14]}  fxe4 {[%clk 0:00:57]} 29. Qc5 {[%clk 0:00:11]}  b6 {[%clk 0:00:36]} 30. Qd5+ {[%clk 0:00:11]}  Kh8 {[%clk 0:00:36]} 31. Bxe4 {[%clk 0:00:07]}  Nxe4 {[%clk 0:00:34]} 32. Rxe4 {[%clk 0:00:08]}  Qf2+ {[%clk 0:00:33]} 33. Kh1 {[%clk 0:00:08]}  Qf3+ {[%clk 0:00:33]} 34. Kg1 {[%clk 0:00:08]}  Qf2+ {[%clk 0:00:34]} 35. Kh1 {[%clk 0:00:08]}  Qxe1+ {[%clk 0:00:28]} 36. Rxe1 {[%clk 0:00:09]}  Rxe1+ {[%clk 0:00:29]} 37. Kg2 {[%clk 0:00:09]}  Re2+ {[%clk 0:00:28]} 38. Kh3 {[%clk 0:00:10]}  Rxb2 {[%clk 0:00:25]} 39. Qxc4 {[%clk 0:00:09]}  Rd2 {[%clk 0:00:20]} 40. Qb4 {[%clk 0:00:07]}  Rff2 {[%clk 0:00:20]} 41. Qd6 {[%clk 0:00:06]}  Rxh2+ {[%clk 0:00:19]} 42. Kg4 {[%clk 0:00:07]}  h6 {[%clk 0:00:16]} 43. Qd8+ {[%clk 0:00:04]}  Kh7 {[%clk 0:00:16]} 44. Qd5 {[%clk 0:00:05]}  Rhf2 {[%clk 0:00:14]} 45. Qe4+ {[%clk 0:00:05]}  Kg8 {[%clk 0:00:14]} 46. Qe6+ {[%clk 0:00:04]}  Rf7 {[%clk 0:00:14]} 47. Qe8+ {[%clk 0:00:04]}  Rf8 {[%clk 0:00:13]} 48. Qe6+ {[%clk 0:00:04]}  Kh8 {[%clk 0:00:14]} 49. Qd6 {[%clk 0:00:03]}  Re8 {[%clk 0:00:13]} 50. Qd7 {[%clk 0:00:02]}  Re4+ {[%clk 0:00:12]} 51. Kf5 {[%clk 0:00:02]}  Rexd4 {[%clk 0:00:12]} 52. Qe8+ {[%clk 0:00:02]}  Kh7 {[%clk 0:00:13]} 53. Qg6+ {[%clk 0:00:03]}  Kg8 {[%clk 0:00:13]} 54. Qe8+ {[%clk 0:00:04]}  Kh7 {[%clk 0:00:13]} 55. Qg6+ {[%clk 0:00:05]}  Kg8 {[%clk 0:00:14]} 56. Qe8+ {[%clk 0:00:05]}  Kh7 {[%clk 0:00:14]} 1/2-1/2


[Site "https://www.chess.com"]

[Event "Titled Tuesday Blitz April 19 Early 2022"]
[White "Sharafiev, Azat"]
[Black "Kostiukov, Alexandr"]
[WhiteFideId "4186214"]
[BlackFideId "14108100"]
[WhiteElo "2299"]
[BlackElo "2202"]
[Result "1-0"]
[Round "06"]
[TimeControl "180+1"]
[Date "2022.04.19"]
[WhiteClock "0:00:12"]
[BlackClock "0:00:02"]

1. Nf3 {[%clk 0:03:00]}  g6 {[%clk 0:02:53]} 2. e4 {[%clk 0:02:59]}  c5 {[%clk 0:02:52]} 3. d4 {[%clk 0:02:58]}  cxd4 {[%clk 0:02:52]} 4. Nxd4 {[%clk 0:02:59]}  Bg7 {[%clk 0:02:52]} 5. c4 {[%clk 0:02:59]}  Nc6 {[%clk 0:02:51]} 6. Nc2 {[%clk 0:02:58]}  Nf6 {[%clk 0:02:50]} 7. Nc3 {[%clk 0:02:57]}  O-O {[%clk 0:02:51]} 8. Be2 {[%clk 0:02:57]}  d6 {[%clk 0:02:51]} 9. O-O {[%clk 0:02:57]}  Nd7 {[%clk 0:02:50]} 10. Qd2 {[%clk 0:02:46]}  Nc5 {[%clk 0:02:50]} 11. f3 {[%clk 0:02:46]}  f5 {[%clk 0:02:49]} 12. exf5 {[%clk 0:02:44]}  Bxf5 {[%clk 0:02:48]} 13. b3 {[%clk 0:02:43]}  Qd7 {[%clk 0:02:39]} 14. Bb2 {[%clk 0:02:42]}  Bxc2 {[%clk 0:02:32]} 15. Qxc2 {[%clk 0:02:41]}  Nd4 {[%clk 0:02:32]} 16. Qd2 {[%clk 0:02:40]}  e5 {[%clk 0:02:07]} 17. Nd5 {[%clk 0:02:35]}  Nce6 {[%clk 0:02:03]} 18. Bd3 {[%clk 0:02:33]}  Kh8 {[%clk 0:01:59]} 19. Be4 {[%clk 0:02:21]}  Rae8 {[%clk 0:01:58]} 20. Rad1 {[%clk 0:02:19]}  Rf7 {[%clk 0:01:47]} 21. Ne3 {[%clk 0:01:50]}  Bh6 {[%clk 0:01:38]} 22. Qc3 {[%clk 0:01:48]}  Kg8 {[%clk 0:01:23]} 23. Rf2 {[%clk 0:01:44]}  Nc5 {[%clk 0:01:16]} 24. Bd5 {[%clk 0:01:43]}  Nce6 {[%clk 0:01:16]} 25. Ng4 {[%clk 0:01:42]}  Bg7 {[%clk 0:01:15]} 26. Qe3 {[%clk 0:01:40]}  Kh8 {[%clk 0:01:09]} 27. Qe1 {[%clk 0:01:18]}  Rf4 {[%clk 0:01:01]} 28. Kh1 {[%clk 0:01:17]}  h5 {[%clk 0:01:00]} 29. Ne3 {[%clk 0:01:16]}  Kh7 {[%clk 0:00:58]} 30. Rfd2 {[%clk 0:01:13]}  Nc5 {[%clk 0:00:56]} 31. Nc2 {[%clk 0:01:10]}  Nce6 {[%clk 0:00:53]} 32. Nb4 {[%clk 0:01:07]}  a5 {[%clk 0:00:52]} 33. Nd3 {[%clk 0:01:07]}  b6 {[%clk 0:00:52]} 34. Nxf4 {[%clk 0:01:07]}  Nxf4 {[%clk 0:00:40]} 35. Be4 {[%clk 0:01:07]}  Nfe6 {[%clk 0:00:38]} 36. Qh4 {[%clk 0:01:07]}  Qf7 {[%clk 0:00:38]} 37. Qxh5+ {[%clk 0:01:07]}  Bh6 {[%clk 0:00:34]} 38. Qh4 {[%clk 0:00:54]}  Kg7 {[%clk 0:00:33]} 39. Rd3 {[%clk 0:00:51]}  Nf4 {[%clk 0:00:32]} 40. Rxd4 {[%clk 0:00:51]}  exd4 {[%clk 0:00:32]} 41. Rxd4 {[%clk 0:00:49]}  Kh7 {[%clk 0:00:29]} 42. Rxd6 {[%clk 0:00:47]}  Re6 {[%clk 0:00:20]} 43. Qd8 {[%clk 0:00:45]}  Re8 {[%clk 0:00:14]} 44. Qd7 {[%clk 0:00:45]}  Re7 {[%clk 0:00:13]} 45. Qd8 {[%clk 0:00:44]}  Bg7 {[%clk 0:00:14]} 46. Bxg7 {[%clk 0:00:40]}  Kxg7 {[%clk 0:00:14]} 47. g3 {[%clk 0:00:40]}  Ne6 {[%clk 0:00:13]} 48. Qxb6 {[%clk 0:00:40]}  Nc7 {[%clk 0:00:11]} 49. Rxg6+ {[%clk 0:00:38]}  Kf8 {[%clk 0:00:10]} 50. Qxa5 {[%clk 0:00:35]}  Rxe4 {[%clk 0:00:09]} 51. Qc5+ {[%clk 0:00:19]}  Re7 {[%clk 0:00:09]} 52. Qh5 {[%clk 0:00:12]}  Ke8 {[%clk 0:00:05]} 53. Rg8+ {[%clk 0:00:12]}  Kd7 {[%clk 0:00:05]} 54. Qxf7 {[%clk 0:00:12]}  Rxf7 {[%clk 0:00:04]} 55. Kg2 {[%clk 0:00:13]}  Ne6 {[%clk 0:00:04]} 56. h4 {[%clk 0:00:12]}  Nd4 {[%clk 0:00:04]} 57. f4 {[%clk 0:00:12]}  Nf5 {[%clk 0:00:04]} 58. h5 {[%clk 0:00:12]}  Nh6 {[%clk 0:00:04]} 59. Rg6 {[%clk 0:00:12]}  Nf5 {[%clk 0:00:03]} 60. Kf3 {[%clk 0:00:12]}  Nd4+ {[%clk 0:00:03]} 61. Kg4 {[%clk 0:00:12]}  Ne6 {[%clk 0:00:02]} 62. h6 {[%clk 0:00:12]} 1-0


[Site "https://www.chess.com"]